[Event "Titled Tuesday Blitz May 23 Late 2023"]
[White "Ibadov, Dashgyn"]
[Black "Schmakel, Sam"]
[WhiteFideId "24107514"]
[BlackFideId "2039311"]
[WhiteElo "2208"]
[BlackElo "2356"]
[Result "0-1"]
[Round "04"]
[TimeControl "180+2"]
[Date "2023.05.23"]
[WhiteClock "0:00:00"]
[BlackClock "0:00:17"]

1. e4 {[%clk 0:03:00]}  g6 {[%clk 0:03:00]} 2. d4 {[%clk 0:02:59]}  Bg7 {[%clk 0:03:01]} 3. Nc3 {[%clk 0:02:59]}  d6 {[%clk 0:03:01]} 4. Nf3 {[%clk 0:02:58]}  a6 {[%clk 0:03:01]} 5. h4 {[%clk 0:02:51]}  h6 {[%clk 0:02:59]} 6. Be3 {[%clk 0:02:38]}  b5 {[%clk 0:02:59]} 7. h5 {[%clk 0:02:30]}  g5 {[%clk 0:02:59]} 8. Bd3 {[%clk 0:02:26]}  Nd7 {[%clk 0:02:54]} 9. e5 {[%clk 0:02:23]}  e6 {[%clk 0:02:35]} 10. a4 {[%clk 0:02:15]}  b4 {[%clk 0:02:24]} 11. Ne4 {[%clk 0:02:14]}  d5 {[%clk 0:02:12]} 12. Ng3 {[%clk 0:02:09]}  c5 {[%clk 0:02:12]} 13. O-O {[%clk 0:01:55]}  cxd4 {[%clk 0:02:01]} 14. Bxd4 {[%clk 0:01:51]}  Ne7 {[%clk 0:02:00]} 15. Re1 {[%clk 0:01:42]}  Nc6 {[%clk 0:02:00]} 16. c3 {[%clk 0:01:39]}  a5 {[%clk 0:01:39]} 17. Bb5 {[%clk 0:01:35]}  Nxd4 {[%clk 0:01:29]} 18. cxd4 {[%clk 0:01:32]}  Ba6 {[%clk 0:01:30]} 19. Bxa6 {[%clk 0:01:28]}  Rxa6 {[%clk 0:01:30]} 20. Qd3 {[%clk 0:01:26]}  Rc6 {[%clk 0:01:26]} 21. Rac1 {[%clk 0:01:14]}  Qc7 {[%clk 0:01:26]} 22. Rxc6 {[%clk 0:01:10]}  Qxc6 {[%clk 0:01:26]} 23. Qd2 {[%clk 0:00:54]}  Qxa4 {[%clk 0:01:20]} 24. Rc1 {[%clk 0:00:54]}  Nb6 {[%clk 0:00:59]} 25. Rc7 {[%clk 0:00:26]}  O-O {[%clk 0:00:59]} 26. Nxg5 {[%clk 0:00:17]}  hxg5 {[%clk 0:01:00]} 27. Qxg5 {[%clk 0:00:15]}  Qd1+ {[%clk 0:01:00]} 28. Kh2 {[%clk 0:00:14]}  Qxd4 {[%clk 0:01:01]} 29. f4 {[%clk 0:00:08]}  Qd3 {[%clk 0:00:59]} 30. f5 {[%clk 0:00:07]}  Kh8 {[%clk 0:00:45]} 31. fxe6 {[%clk 0:00:04]}  Qh7 {[%clk 0:00:46]} 32. exf7 {[%clk 0:00:02]}  Bh6 {[%clk 0:00:36]} 33. Qf6+ {[%clk 0:00:03]}  Qg7 {[%clk 0:00:36]} 34. Qxb6 {[%clk 0:00:02]}  Bf4 {[%clk 0:00:37]} 35. Qf2 {[%clk 0:00:02]}  Qxe5 {[%clk 0:00:34]} 36. Rd7 {[%clk 0:00:02]}  Qxh5+ {[%clk 0:00:30]} 37. Kg1 {[%clk 0:00:02]}  Qd1+ {[%clk 0:00:30]} 38. Nf1 {[%clk 0:00:02]}  Qg4 {[%clk 0:00:25]} 39. Rxd5 {[%clk 0:00:02]}  Rxf7 {[%clk 0:00:23]} 40. Qd4+ {[%clk 0:00:02]}  Kh7 {[%clk 0:00:23]} 41. Qe4+ {[%clk 0:00:02]}  Qg6 {[%clk 0:00:21]} 42. Qd4 {[%clk 0:00:00]}  Rg7 {[%clk 0:00:17]} 0-1


[Site "https://www.chess.com"]

[Event "Titled Tuesday Blitz May 23 Late 2023"]
[White "FoxOnTheRun97"]
[Black "Yanchenko, Roman"]
[BlackFideId "4137329"]
[WhiteElo "2560"]
[BlackElo "2491"]
[Result "0-1"]
[Round "04"]
[TimeControl "180+2"]
[Date "2023.05.23"]
[WhiteClock "0:00:00"]
[BlackClock "0:00:24"]

1. d4 {[%clk 0:02:57]}  d5 {[%clk 0:02:59]} 2. c4 {[%clk 0:02:55]}  c6 {[%clk 0:02:59]} 3. Nf3 {[%clk 0:02:54]}  Nf6 {[%clk 0:02:59]} 4. e3 {[%clk 0:02:54]}  Bf5 {[%clk 0:02:59]} 5. Nc3 {[%clk 0:02:51]}  e6 {[%clk 0:02:59]} 6. Qb3 {[%clk 0:02:40]}  Qb6 {[%clk 0:02:59]} 7. Bd2 {[%clk 0:02:35]}  Nbd7 {[%clk 0:02:59]} 8. h3 {[%clk 0:02:15]}  Be7 {[%clk 0:02:57]} 9. Qxb6 {[%clk 0:02:02]}  axb6 {[%clk 0:02:57]} 10. Nh4 {[%clk 0:02:01]}  Be4 {[%clk 0:02:57]} 11. Nxe4 {[%clk 0:01:47]}  Nxe4 {[%clk 0:02:58]} 12. Nf3 {[%clk 0:01:46]}  Nxd2 {[%clk 0:02:49]} 13. Nxd2 {[%clk 0:01:47]}  Bb4 {[%clk 0:02:49]} 14. Bd3 {[%clk 0:01:43]}  dxc4 {[%clk 0:02:48]} 15. Bxc4 {[%clk 0:01:41]}  b5 {[%clk 0:02:48]} 16. Bb3 {[%clk 0:01:13]}  e5 {[%clk 0:02:47]} 17. dxe5 {[%clk 0:01:11]}  Nxe5 {[%clk 0:02:45]} 18. Ke2 {[%clk 0:01:11]}  Bxd2 {[%clk 0:02:45]} 19. Kxd2 {[%clk 0:01:10]}  Ke7 {[%clk 0:02:44]} 20. Rhd1 {[%clk 0:01:02]}  Nd7 {[%clk 0:02:43]} 21. Rac1 {[%clk 0:00:59]}  Rhd8 {[%clk 0:02:37]} 22. Ke2 {[%clk 0:00:58]}  f5 {[%clk 0:02:38]} 23. a3 {[%clk 0:00:53]}  g6 {[%clk 0:02:34]} 24. Rd4 {[%clk 0:00:49]}  Nf6 {[%clk 0:02:30]} 25. Rcd1 {[%clk 0:00:48]}  Rxd4 {[%clk 0:02:24]} 26. Rxd4 {[%clk 0:00:49]}  Ne4 {[%clk 0:02:24]} 27. f3 {[%clk 0:00:45]}  Nc5 {[%clk 0:02:24]} 28. Bc2 {[%clk 0:00:42]}  Ne6 {[%clk 0:02:23]} 29. Rd2 {[%clk 0:00:38]}  f4 {[%clk 0:02:19]} 30. exf4 {[%clk 0:00:34]}  Nxf4+ {[%clk 0:02:19]} 31. Kf2 {[%clk 0:00:35]}  Ne6 {[%clk 0:01:55]} 32. h4 {[%clk 0:00:33]}  Rf8 {[%clk 0:01:40]} 33. Be4 {[%clk 0:00:24]}  Nc5 {[%clk 0:01:35]} 34. Ke3 {[%clk 0:00:24]}  Rf6 {[%clk 0:01:32]} 35. Rc2 {[%clk 0:00:23]}  Nd7 {[%clk 0:01:31]} 36. g3 {[%clk 0:00:21]}  Ne5 {[%clk 0:01:29]} 37. f4 {[%clk 0:00:18]}  Nc4+ {[%clk 0:01:18]} 38. Kd4 {[%clk 0:00:15]}  Rd6+ {[%clk 0:01:14]} 39. Kc3 {[%clk 0:00:15]}  Rd1 {[%clk 0:01:11]} 40. Re2 {[%clk 0:00:15]}  Kf6 {[%clk 0:01:09]} 41. Bc2 {[%clk 0:00:13]}  Rg1 {[%clk 0:01:08]} 42. b3 {[%clk 0:00:11]}  Rxg3+ {[%clk 0:01:08]} 43. Kb4 {[%clk 0:00:11]}  Ne3 {[%clk 0:01:04]} 44. Be4 {[%clk 0:00:10]}  Nd1 {[%clk 0:01:01]} 45. Rd2 {[%clk 0:00:08]}  Nf2 {[%clk 0:00:59]} 46. Bc2 {[%clk 0:00:06]}  Rf3 {[%clk 0:00:49]} 47. Kc5 {[%clk 0:00:05]}  Rxf4 {[%clk 0:00:49]} 48. Kb6 {[%clk 0:00:06]}  b4 {[%clk 0:00:44]} 49. a4 {[%clk 0:00:04]}  Ne4 {[%clk 0:00:36]} 50. Re2 {[%clk 0:00:04]}  Nd6 {[%clk 0:00:32]} 51. Kc7 {[%clk 0:00:02]}  Rd4 {[%clk 0:00:32]} 52. Rf2+ {[%clk 0:00:02]}  Kg7 {[%clk 0:00:30]} 53. a5 {[%clk 0:00:02]}  Rd5 {[%clk 0:00:28]} 54. Re2 {[%clk 0:00:00]}  Kh6 {[%clk 0:00:24]} 0-1


[Site "https://www.chess.com"]

[Event "Titled Tuesday Blitz May 23 Late 2023"]
[White "Jaracz, Pawel"]
[Black "OPQRC"]
[WhiteFideId "1102222"]
[WhiteElo "2438"]
[BlackElo "2556"]
[Result "1-0"]
[Round "04"]
[TimeControl "180+2"]
[Date "2023.05.23"]
[WhiteClock "0:00:32"]
[BlackClock "0:00:51"]

1. d4 {[%clk 0:02:58]}  Nf6 {[%clk 0:03:00]} 2. c4 {[%clk 0:02:58]}  g6 {[%clk 0:03:00]} 3. Nc3 {[%clk 0:02:56]}  Bg7 {[%clk 0:03:00]} 4. e4 {[%clk 0:02:54]}  d6 {[%clk 0:03:01]} 5. Be2 {[%clk 0:02:55]}  O-O {[%clk 0:03:01]} 6. Nf3 {[%clk 0:02:55]}  e5 {[%clk 0:03:02]} 7. O-O {[%clk 0:02:54]}  Nbd7 {[%clk 0:03:00]} 8. Be3 {[%clk 0:02:52]}  Qe7 {[%clk 0:03:00]} 9. Qc2 {[%clk 0:02:48]}  h6 {[%clk 0:02:59]} 10. Rad1 {[%clk 0:02:42]}  Re8 {[%clk 0:02:43]} 11. Rfe1 {[%clk 0:02:34]}  Ng4 {[%clk 0:02:42]} 12. Bc1 {[%clk 0:02:27]}  exd4 {[%clk 0:02:42]} 13. Nd5 {[%clk 0:02:25]}  Qd8 {[%clk 0:02:37]} 14. Nxd4 {[%clk 0:02:25]}  Nxf2 {[%clk 0:02:33]} 15. Kxf2 {[%clk 0:02:23]}  Qh4+ {[%clk 0:02:33]} 16. Kf1 {[%clk 0:02:08]}  Bxd4 {[%clk 0:02:31]} 17. Rxd4 {[%clk 0:02:07]}  c6 {[%clk 0:02:31]} 18. Ne3 {[%clk 0:01:48]}  Qf6+ {[%clk 0:02:27]} 19. Nf5 {[%clk 0:01:41]}  gxf5 {[%clk 0:02:28]} 20. Qc3 {[%clk 0:01:37]}  fxe4+ {[%clk 0:02:26]} 21. Kg1 {[%clk 0:01:37]}  c5 {[%clk 0:02:20]} 22. Rdd1 {[%clk 0:01:26]}  Ne5 {[%clk 0:02:00]} 23. Qg3+ {[%clk 0:01:18]}  Kh8 {[%clk 0:01:53]} 24. Rf1 {[%clk 0:01:18]}  Qg7 {[%clk 0:01:39]} 25. Rxd6 {[%clk 0:01:13]}  Be6 {[%clk 0:01:13]} 26. Qh4 {[%clk 0:00:48]}  Ng6 {[%clk 0:01:08]} 27. Qxh6+ {[%clk 0:00:40]}  Qxh6 {[%clk 0:01:08]} 28. Bxh6 {[%clk 0:00:41]}  Rad8 {[%clk 0:01:08]} 29. Rfd1 {[%clk 0:00:39]}  Rxd6 {[%clk 0:01:08]} 30. Rxd6 {[%clk 0:00:40]}  Ne5 {[%clk 0:01:07]} 31. b3 {[%clk 0:00:38]}  Nc6 {[%clk 0:01:07]} 32. Be3 {[%clk 0:00:35]}  f5 {[%clk 0:00:58]} 33. Bxc5 {[%clk 0:00:35]}  f4 {[%clk 0:00:58]} 34. Bh5 {[%clk 0:00:32]}  Re7 {[%clk 0:00:51]} 35. Rxc6 {[%clk 0:00:32]} 1-0


[Site "https://www.chess.com"]

[Event "Titled Tuesday Blitz May 23 Late 2023"]
[White "Bartel, Michal"]
[Black "Szpar, Milosz"]
[WhiteFideId "1119257"]
[BlackFideId "1184989"]
[WhiteElo "2282"]
[BlackElo "2434"]
[Result "0-1"]
[Round "04"]
[TimeControl "180+2"]
[Date "2023.05.23"]
[WhiteClock "0:00:32"]
[BlackClock "0:01:03"]

1. e4 {[%clk 0:03:00]}  e6 {[%clk 0:02:54]} 2. d4 {[%clk 0:03:00]}  d5 {[%clk 0:02:53]} 3. Nc3 {[%clk 0:02:59]}  Nf6 {[%clk 0:02:48]} 4. e5 {[%clk 0:02:57]}  Nfd7 {[%clk 0:02:48]} 5. Nce2 {[%clk 0:02:57]}  c5 {[%clk 0:02:47]} 6. c3 {[%clk 0:02:57]}  Nc6 {[%clk 0:02:39]} 7. Nf3 {[%clk 0:02:57]}  Be7 {[%clk 0:02:37]} 8. g3 {[%clk 0:02:57]}  O-O {[%clk 0:02:37]} 9. Bh3 {[%clk 0:02:57]}  b5 {[%clk 0:02:37]} 10. O-O {[%clk 0:02:57]}  b4 {[%clk 0:02:37]} 11. Nf4 {[%clk 0:02:53]}  Nb6 {[%clk 0:02:27]} 12. Re1 {[%clk 0:02:37]}  bxc3 {[%clk 0:02:27]} 13. bxc3 {[%clk 0:02:36]}  cxd4 {[%clk 0:02:27]} 14. cxd4 {[%clk 0:02:36]}  Nc4 {[%clk 0:02:26]} 15. Nd3 {[%clk 0:02:24]}  Ba6 {[%clk 0:02:25]} 16. Bf1 {[%clk 0:02:16]}  Rb8 {[%clk 0:02:24]} 17. h4 {[%clk 0:02:14]}  h6 {[%clk 0:02:23]} 18. Kh2 {[%clk 0:01:44]}  Qb6 {[%clk 0:02:08]} 19. Nf4 {[%clk 0:01:35]}  Nb2 {[%clk 0:01:49]} 20. Bxb2 {[%clk 0:01:29]}  Bxf1 {[%clk 0:01:49]} 21. Rxf1 {[%clk 0:01:17]}  Qxb2 {[%clk 0:01:48]} 22. Qc1 {[%clk 0:01:17]}  Nxd4 {[%clk 0:01:42]} 23. Nxd4 {[%clk 0:01:11]}  Qxd4 {[%clk 0:01:40]} 24. Qc7 {[%clk 0:01:02]}  Bxh4 {[%clk 0:01:35]} 25. Rad1 {[%clk 0:00:56]}  Qa4 {[%clk 0:01:34]} 26. Nd3 {[%clk 0:00:47]}  Rfc8 {[%clk 0:01:29]} 27. Qd6 {[%clk 0:00:40]}  Bd8 {[%clk 0:01:28]} 28. Nf4 {[%clk 0:00:37]}  Rb6 {[%clk 0:01:25]} 29. Qd7 {[%clk 0:00:32]}  Qxd7 {[%clk 0:01:03]} 0-1


[Site "https://www.chess.com"]

[Event "Titled Tuesday Blitz May 23 Late 2023"]
[White "Fiorito, Francisco"]
[Black "Weetik, Vjacheslav"]
[WhiteFideId "180165"]
[BlackFideId "4153472"]
[WhiteElo "2341"]
[BlackElo "2469"]
[Result "1-0"]
[Round "04"]
[TimeControl "180+2"]
[Date "2023.05.23"]
[WhiteClock "0:00:17"]
[BlackClock "0:00:02"]

1. d4 {[%clk 0:03:00]}  Nf6 {[%clk 0:02:58]} 2. Nc3 {[%clk 0:02:59]}  d5 {[%clk 0:02:58]} 3. Bf4 {[%clk 0:02:58]}  c5 {[%clk 0:02:58]} 4. e3 {[%clk 0:02:57]}  cxd4 {[%clk 0:02:57]} 5. exd4 {[%clk 0:02:57]}  a6 {[%clk 0:02:55]} 6. Nf3 {[%clk 0:02:54]}  Nc6 {[%clk 0:02:53]} 7. Ne5 {[%clk 0:02:51]}  Bd7 {[%clk 0:02:48]} 8. Qd2 {[%clk 0:02:47]}  e6 {[%clk 0:02:40]} 9. Be2 {[%clk 0:02:46]}  Qb6 {[%clk 0:02:39]} 10. Nxc6 {[%clk 0:02:35]}  Bxc6 {[%clk 0:02:39]} 11. Rb1 {[%clk 0:02:07]}  Bb4 {[%clk 0:02:26]} 12. f3 {[%clk 0:02:06]}  Rc8 {[%clk 0:02:19]} 13. a3 {[%clk 0:01:59]}  Bxc3 {[%clk 0:02:08]} 14. Qxc3 {[%clk 0:02:00]}  O-O {[%clk 0:02:09]} 15. Qb4 {[%clk 0:01:54]}  Qxb4+ {[%clk 0:01:58]} 16. axb4 {[%clk 0:01:54]}  Bb5 {[%clk 0:01:53]} 17. Bxb5 {[%clk 0:01:54]}  axb5 {[%clk 0:01:54]} 18. c3 {[%clk 0:01:54]}  Ra8 {[%clk 0:01:52]} 19. Kd2 {[%clk 0:01:51]}  Nd7 {[%clk 0:01:51]} 20. Bd6 {[%clk 0:01:51]}  Rfc8 {[%clk 0:01:51]} 21. Ra1 {[%clk 0:01:43]}  b6 {[%clk 0:01:16]} 22. Bf4 {[%clk 0:01:32]}  f6 {[%clk 0:01:08]} 23. Rxa8 {[%clk 0:01:20]}  Rxa8 {[%clk 0:01:08]} 24. Re1 {[%clk 0:01:21]}  Kf7 {[%clk 0:01:08]} 25. h4 {[%clk 0:01:20]}  h5 {[%clk 0:01:06]} 26. Kc2 {[%clk 0:01:19]}  Ra7 {[%clk 0:01:00]} 27. Re2 {[%clk 0:01:15]}  Nf8 {[%clk 0:00:56]} 28. g3 {[%clk 0:01:13]}  Ng6 {[%clk 0:00:53]} 29. Bc1 {[%clk 0:01:07]}  Ne7 {[%clk 0:00:50]} 30. g4 {[%clk 0:01:02]}  Ra8 {[%clk 0:00:45]} 31. Bf4 {[%clk 0:00:59]}  Rh8 {[%clk 0:00:40]} 32. Bg3 {[%clk 0:00:57]}  Ng6 {[%clk 0:00:37]} 33. Rh2 {[%clk 0:00:57]}  f5 {[%clk 0:00:20]} 34. gxf5 {[%clk 0:00:50]}  exf5 {[%clk 0:00:20]} 35. Bc7 {[%clk 0:00:50]}  Ra8 {[%clk 0:00:19]} 36. Rh1 {[%clk 0:00:44]}  Ra6 {[%clk 0:00:14]} 37. Rh2 {[%clk 0:00:40]}  Nf8 {[%clk 0:00:13]} 38. Rh1 {[%clk 0:00:38]}  Ne6 {[%clk 0:00:14]} 39. Be5 {[%clk 0:00:39]}  g6 {[%clk 0:00:13]} 40. f4 {[%clk 0:00:39]}  Ra8 {[%clk 0:00:12]} 41. Rg1 {[%clk 0:00:38]}  Ra7 {[%clk 0:00:11]} 42. Kb1 {[%clk 0:00:38]}  Nf8 {[%clk 0:00:10]} 43. b3 {[%clk 0:00:30]}  Ne6 {[%clk 0:00:10]} 44. Kb2 {[%clk 0:00:29]}  Nd8 {[%clk 0:00:10]} 45. Rc1 {[%clk 0:00:28]}  Nc6 {[%clk 0:00:10]} 46. Rd1 {[%clk 0:00:20]}  Ra8 {[%clk 0:00:10]} 47. Rg1 {[%clk 0:00:19]}  Ra7 {[%clk 0:00:09]} 48. Rg2 {[%clk 0:00:20]}  Ra6 {[%clk 0:00:08]} 49. Re2 {[%clk 0:00:20]}  Nd8 {[%clk 0:00:07]} 50. Bd6 {[%clk 0:00:18]}  Ne6 {[%clk 0:00:07]} 51. Re1 {[%clk 0:00:17]}  Ra8 {[%clk 0:00:07]} 52. Be5 {[%clk 0:00:17]}  Ra7 {[%clk 0:00:06]} 53. Rc1 {[%clk 0:00:17]}  Ke7 {[%clk 0:00:05]} 54. c4 {[%clk 0:00:18]}  bxc4 {[%clk 0:00:05]} 55. bxc4 {[%clk 0:00:19]}  dxc4 {[%clk 0:00:06]} 56. Rxc4 {[%clk 0:00:19]}  Kd7 {[%clk 0:00:06]} 57. Kc3 {[%clk 0:00:19]}  Ra3+ {[%clk 0:00:06]} 58. Kb2 {[%clk 0:00:20]}  Ra7 {[%clk 0:00:06]} 59. d5 {[%clk 0:00:20]}  Nd8 {[%clk 0:00:06]} 60. Kb3 {[%clk 0:00:18]}  Nf7 {[%clk 0:00:05]} 61. Rc6 {[%clk 0:00:18]}  b5 {[%clk 0:00:03]} 62. Rxg6 {[%clk 0:00:18]}  Ra1 {[%clk 0:00:02]} 63. Bxa1 {[%clk 0:00:17]} 1-0


[Site "https://www.chess.com"]

[Event "Titled Tuesday Blitz May 23 Late 2023"]
[White "Chos, Alexey"]
[Black "Chen, Ryo"]
[WhiteFideId "14117762"]
[BlackFideId "7003072"]
[WhiteElo "2234"]
[BlackElo "2169"]
[Result "0-1"]
[Round "04"]
[TimeControl "180+2"]
[Date "2023.05.23"]
[WhiteClock "0:00:00"]
[BlackClock "0:00:33"]

1. b3 {[%clk 0:03:00]}  Nf6 {[%clk 0:02:59]} 2. Bb2 {[%clk 0:03:00]}  g6 {[%clk 0:03:00]} 3. g3 {[%clk 0:03:00]}  Bg7 {[%clk 0:03:00]} 4. Bg2 {[%clk 0:03:01]}  O-O {[%clk 0:03:00]} 5. e4 {[%clk 0:03:01]}  d6 {[%clk 0:03:00]} 6. Ne2 {[%clk 0:03:01]}  c5 {[%clk 0:03:00]} 7. O-O {[%clk 0:03:01]}  Nc6 {[%clk 0:03:01]} 8. d4 {[%clk 0:03:02]}  cxd4 {[%clk 0:03:00]} 9. Nxd4 {[%clk 0:03:03]}  Bg4 {[%clk 0:02:59]} 10. f3 {[%clk 0:03:03]}  Bd7 {[%clk 0:02:58]} 11. Nd2 {[%clk 0:03:03]}  Ne8 {[%clk 0:02:41]} 12. Nc4 {[%clk 0:02:46]}  Nxd4 {[%clk 0:02:30]} 13. Bxd4 {[%clk 0:02:45]}  Bb5 {[%clk 0:02:29]} 14. Bxg7 {[%clk 0:02:39]}  Nxg7 {[%clk 0:02:27]} 15. Qd5 {[%clk 0:02:30]}  Bxc4 {[%clk 0:02:17]} 16. Qxc4 {[%clk 0:02:22]}  Qb6+ {[%clk 0:02:17]} 17. Kh1 {[%clk 0:02:21]}  Rac8 {[%clk 0:02:16]} 18. Qd3 {[%clk 0:02:21]}  Qc5 {[%clk 0:02:11]} 19. c4 {[%clk 0:02:21]}  a6 {[%clk 0:02:08]} 20. Qd2 {[%clk 0:02:17]}  b5 {[%clk 0:02:07]} 21. Rac1 {[%clk 0:02:16]}  Ne6 {[%clk 0:02:02]} 22. f4 {[%clk 0:02:13]}  bxc4 {[%clk 0:01:57]} 23. Rxc4 {[%clk 0:02:11]}  Qb5 {[%clk 0:01:58]} 24. f5 {[%clk 0:02:11]}  Ng7 {[%clk 0:01:50]} 25. Rxc8 {[%clk 0:02:06]}  Rxc8 {[%clk 0:01:49]} 26. f6 {[%clk 0:02:07]}  exf6 {[%clk 0:01:46]} 27. Qxd6 {[%clk 0:02:06]}  Ne6 {[%clk 0:01:43]} 28. Qe7 {[%clk 0:01:59]}  Qe5 {[%clk 0:01:36]} 29. Qxf6 {[%clk 0:01:41]}  Qxf6 {[%clk 0:01:35]} 30. Rxf6 {[%clk 0:01:42]}  Rc1+ {[%clk 0:01:35]} 31. Bf1 {[%clk 0:01:32]}  Ng5 {[%clk 0:01:32]} 32. e5 {[%clk 0:01:28]}  Ne4 {[%clk 0:01:24]} 33. Rf4 {[%clk 0:01:26]}  Nd2 {[%clk 0:01:22]} 34. Kg1 {[%clk 0:01:24]}  Re1 {[%clk 0:01:14]} 35. b4 {[%clk 0:00:56]}  Nxf1 {[%clk 0:01:11]} 36. Rxf1 {[%clk 0:00:56]}  Rxe5 {[%clk 0:01:12]} 37. a4 {[%clk 0:00:55]}  Re3 {[%clk 0:01:02]} 38. Rb1 {[%clk 0:00:53]}  Ra3 {[%clk 0:00:58]} 39. b5 {[%clk 0:00:52]}  axb5 {[%clk 0:00:57]} 40. axb5 {[%clk 0:00:52]}  Kf8 {[%clk 0:00:58]} 41. b6 {[%clk 0:00:52]}  Ra8 {[%clk 0:00:58]} 42. Kf2 {[%clk 0:00:52]}  Ke7 {[%clk 0:00:57]} 43. Ke3 {[%clk 0:00:52]}  Kd6 {[%clk 0:00:58]} 44. b7 {[%clk 0:00:51]}  Re8+ {[%clk 0:00:54]} 45. Kd4 {[%clk 0:00:50]}  Kc7 {[%clk 0:00:54]} 46. Kd5 {[%clk 0:00:45]}  Kb8 {[%clk 0:00:52]} 47. Kd6 {[%clk 0:00:40]}  f5 {[%clk 0:00:51]} 48. Kc6 {[%clk 0:00:38]}  Re6+ {[%clk 0:00:47]} 49. Kd5 {[%clk 0:00:38]}  Re2 {[%clk 0:00:47]} 50. Kc6 {[%clk 0:00:23]}  Rc2+ {[%clk 0:00:43]} 51. Kb6 {[%clk 0:00:22]}  Rxh2 {[%clk 0:00:43]} 52. Kc6 {[%clk 0:00:15]}  Rc2+ {[%clk 0:00:42]} 53. Kb6 {[%clk 0:00:15]}  Rc3 {[%clk 0:00:41]} 54. Ka6 {[%clk 0:00:02]}  Rc6+ {[%clk 0:00:32]} 55. Ka5 {[%clk 0:00:01]}  g5 {[%clk 0:00:31]} 56. Rb5 {[%clk 0:00:01]}  Rf6 {[%clk 0:00:30]} 57. Re5 {[%clk 0:00:01]}  Kxb7 {[%clk 0:00:30]} 58. Kb4 {[%clk 0:00:01]}  h6 {[%clk 0:00:30]} 59. Kc3 {[%clk 0:00:01]}  Kc6 {[%clk 0:00:30]} 60. Kd4 {[%clk 0:00:01]}  Kd6 {[%clk 0:00:31]} 61. Ra5 {[%clk 0:00:02]}  Ke7 {[%clk 0:00:29]} 62. Ra7+ {[%clk 0:00:02]}  Ke6 {[%clk 0:00:30]} 63. Ra6+ {[%clk 0:00:02]}  Kf7 {[%clk 0:00:31]} 64. Ra7+ {[%clk 0:00:02]}  Kg6 {[%clk 0:00:31]} 65. Ke5 {[%clk 0:00:03]}  f4 {[%clk 0:00:31]} 66. gxf4 {[%clk 0:00:03]}  Rxf4 {[%clk 0:00:30]} 67. Ra6+ {[%clk 0:00:03]}  Kh5 {[%clk 0:00:31]} 68. Ra1 {[%clk 0:00:02]}  Rf2 {[%clk 0:00:31]} 69. Rg1 {[%clk 0:00:02]}  Kg6 {[%clk 0:00:32]} 70. Ke4 {[%clk 0:00:02]}  h5 {[%clk 0:00:32]} 71. Ke3 {[%clk 0:00:00]}  Rf5 {[%clk 0:00:33]} 0-1


[Site "https://www.chess.com"]